bitfinex/quotes_BTCUSD_20260215
["timestamp","ask_amount","ask_price","bid_price","bid_amount"]
[1771125984757,0.00013048,69560.0,69559.0,0.19256661]
[1771125985103,0.00013048,69560.0,69559.0,0.12068519]
[1771125986344,0.28800092,69570.0,69552.0,0.28759085]
[1771125986345,0.00052,69570.0,69552.0,0.28759085]
[1771125986578,0.07187182,69569.0,69562.0,0.07187734]
[1771125986760,0.07187182,69569.0,69562.0,0.19256253]
[1771125987006,0.07187182,69569.0,69562.0,0.12068519]
[1771125987376,0.07187422,69566.0,69562.0,0.12068519]
[1771125987553,0.07187422,69566.0,69557.0,0.53696845]
[1771125987810,0.02738925,69569.0,69555.0,0.3444]
[1771125988116,0.02738925,69568.0,69555.0,0.41628543]
[1771125988268,0.07187908,69562.0,69555.0,0.41628543]
[1771125988453,0.07187908,69562.0,69555.0,0.07188543]
[1771125989519,0.28750332,69565.0,69553.0,0.07188713]
[1771125989657,0.07188142,69559.0,69553.0,0.00013048]
[1771125989863,0.07188067,69560.0,69553.0,0.07201789]
[1771125990202,0.07188057,69560.0,69553.0,0.0720178]
[1771125990398,0.07188554,69556.0,69550.0,0.00016]
[1771125990572,0.00013051,69556.0,69550.0,0.00016]
[1771125990977,0.07188632,69555.0,69550.0,0.00016]
[1771125991374,0.07201545,69556.0,69550.0,0.00016]
[1771125991581,0.07401545,69556.0,69550.0,0.00012]
[1771125992198,0.00213051,69556.0,69550.0,0.00012]
[1771125992415,0.07188834,69553.0,69550.0,0.00012]
[1771125992600,0.00213051,69556.0,69550.0,0.00012]
[1771125992601,0.07188585,69555.0,69550.0,0.00012]
[1771125993509,0.07388585,69555.0,69550.0,0.00012]
[1771125993714,0.07188585,69555.0,69550.0,0.00012]
[1771125994236,0.00013051,69556.0,69550.0,0.00012]
[1771125994462,0.02751976,69556.0,69546.0,0.0001257]
[1771125994679,0.28754357,69555.0,69546.0,0.0001257]
[1771125994917,0.07188908,69552.0,69546.0,0.0001257]
[1771125996184,0.00013051,69556.0,69550.0,0.07189061]
[1771125996389,0.07241519,69556.0,69550.0,0.002]
[1771125996734,0.07241519,69556.0,69549.0,0.07189144]
[1771125997607,0.07188555,69555.0,69550.0,0.003]
[1771125997821,0.07188659,69554.0,69547.0,0.07189365]
[1771125998273,4e-05,69548.0,69547.0,0.19257884]
[1771125998463,4e-05,69548.0,69547.0,0.12068519]
[1771125999671,4e-05,69548.0,69547.0,0.12768519]
[1771126000071,4e-05,69548.0,69547.0,0.12068519]
[1771126000272,4e-05,69548.0,69547.0,0.12768519]
[1771126000583,4e-05,69548.0,69547.0,0.12068519]
[1771126001089,4e-05,69548.0,69547.0,0.12768519]
[1771126001915,4e-05,69548.0,69547.0,0.19957901]
[1771126002109,4e-05,69548.0,69547.0,0.19257901]
[1771126002618,4e-05,69548.0,69547.0,0.19957901]
[1771126002812,4e-05,69548.0,69547.0,0.19257901]
[1771126003316,4e-05,69548.0,69547.0,0.19957901]
[1771126003514,4e-05,69548.0,69547.0,0.19257901]
[1771126003717,4e-05,69554.0,69553.0,0.07188762]
[1771126004021,4e-05,69554.0,69553.0,0.12068519]
[1771126005867,4e-05,69554.0,69553.0,0.12668519]
[1771126006067,4e-05,69554.0,69553.0,0.19857281]
[1771126007051,4e-05,69554.0,69553.0,0.12668519]
[1771126007275,4e-05,69554.0,69553.0,0.12068519]
[1771126007420,4e-05,69554.0,69551.0,0.07188783]
[1771126007623,0.07188954,69553.0,69546.0,0.0722197]
[1771126007828,0.07192759,69554.0,69547.0,0.07189361]
[1771126008397,0.07188801,69553.0,69546.0,0.07222048]
[1771126009687,0.07188801,69553.0,69546.0,0.07822048]
[1771126010260,0.07192701,69554.0,69547.0,0.07189381]
[1771126011792,4e-05,69554.0,69548.0,0.07189279]
[1771126012366,0.07192701,69554.0,69547.0,0.07789351]
[1771126012973,0.01,69553.0,69547.0,0.07189351]
[1771126013386,4e-05,69552.0,69548.0,0.00596]
[1771126014676,0.07189382,69547.0,69546.0,0.0003257]
[1771126014871,0.07189187,69549.0,69546.0,0.0003257]
[1771126015102,0.07189187,69549.0,69547.0,0.006]
[1771126015297,0.07189187,69549.0,69546.0,0.0003257]
[1771126015574,0.07189187,69549.0,69548.0,0.007]
[1771126015779,0.07189187,69549.0,69546.0,0.0003257]
[1771126016223,0.07189187,69549.0,69547.0,0.005]
[1771126016423,0.07189187,69549.0,69546.0,0.0003257]
[1771126016841,0.07189187,69549.0,69548.0,0.005]
[1771126017224,0.07189114,69550.0,69548.0,0.005]
[1771126017430,0.07189114,69550.0,69548.0,0.00483332]
[1771126017971,0.07189114,69550.0,69546.0,0.0003257]
[1771126018452,0.07189114,69550.0,69547.0,0.005]
[1771126018603,0.07189114,69550.0,69546.0,0.0003257]
[1771126018801,0.07189212,69549.0,69546.0,0.0003257]
[1771126019024,0.07189212,69549.0,69548.0,0.005]
[1771126019224,0.07189212,69549.0,69546.0,0.0003257]
[1771126019664,0.07189212,69549.0,69547.0,0.005]
[1771126019864,0.07189212,69549.0,69546.0,0.0003257]
[1771126020313,0.07189114,69550.0,69546.0,0.0003257]
[1771126020453,0.07189183,69549.0,69546.0,0.0003257]
[1771126020868,0.07189676,69545.0,69541.0,0.0002]
[1771126021186,0.07192872,69552.0,69541.0,0.0002]
[1771126021384,0.0718905,69551.0,69544.0,0.07189607]
[1771126021551,0.07189087,69550.0,69543.0,0.07189607]
[1771126021755,0.07189087,69550.0,69546.0,0.005]
[1771126022065,0.07189087,69550.0,69543.0,0.07189607]
[1771126022290,0.07189087,69550.0,69541.0,0.07209927]
[1771126022291,0.0104,69553.0,69547.0,0.07189337]
[1771126022455,0.0104,69553.0,69547.0,0.07189302]
[1771126022654,0.0104,69553.0,69547.0,0.19257881]
[1771126022906,0.0004,69563.0,69556.0,0.12068519]
[1771126023101,0.0004,69563.0,69555.0,0.07188554]
[1771126023304,0.0004,69563.0,69557.0,0.07188344]
[1771126023502,0.0004,69563.0,69558.0,0.12068519]
[1771126024559,0.0004,69563.0,69559.0,0.07188142]
[1771126024770,0.07187248,69568.0,69559.0,0.07188142]
[1771126024976,0.07187247,69568.0,69561.0,0.07187935]
[1771126025423,0.07227319,69567.0,69561.0,0.07187935]
[1771126025625,0.0004,69567.0,69566.0,0.07187419]
[1771126025797,0.0004,69567.0,69564.0,0.19256127]
[1771126026004,0.0004,69567.0,69564.0,0.12068519]
[1771126026203,0.0004,69567.0,69564.0,0.19256095]
[1771126026403,0.0004,69567.0,69566.0,0.12068519]
[1771126026688,0.0004,69567.0,69566.0,0.19255938]
[1771126026886,0.00057,69570.0,69569.0,0.12068519]
[1771126028359,0.00061,69570.0,69569.0,0.12052519]
[1771126028775,0.00161,69570.0,69569.0,0.12052519]
[1771126029154,0.07187302,69568.0,69560.0,0.43449501]
[1771126029353,0.00161,69570.0,69556.0,0.43005707]
[1771126029543,0.07187343,69567.0,69558.0,0.07192234]
[1771126029724,0.00061,69570.0,69558.0,4e-05]
[1771126029919,0.02986943,69570.0,69558.0,0.07192164]
[1771126030123,0.02986943,69570.0,69558.0,4e-05]
[1771126030361,0.0718761,69565.0,69558.0,4e-05]
[1771126031137,0.0718761,69565.0,69558.0,0.0719224]
[1771126031457,0.0758761,69565.0,69558.0,0.07175576]
[1771126031822,0.00405,69565.0,69556.0,0.08565707]
[1771126032027,0.2915529,69565.0,69556.0,4e-05]
[1771126032450,0.07187971,69561.0,69556.0,4e-05]
[1771126033087,5e-05,69565.0,69557.0,0.0718825]
[1771126033232,5e-05,69565.0,69560.0,0.0718797]
[1771126033575,5e-05,69565.0,69561.0,0.08561707]
[1771126033962,0.00105,69565.0,69561.0,0.08561707]
[1771126034159,0.00105,69565.0,69561.0,0.15749639]
[1771126034346,5e-05,69565.0,69562.0,0.08561707]
[1771126034578,5e-05,69565.0,69559.0,0.07187949]
[1771126034746,0.07192243,69568.0,69561.0,0.04280854]
[1771126035943,0.0004,69565.0,69561.0,0.04280854]
[1771126036776,0.0004,69565.0,69560.0,0.07188039]
[1771126036979,0.0004,69565.0,69556.0,0.04284854]
[1771126037290,0.07187699,69564.0,69556.0,0.11473268]
[1771126037439,0.07187699,69564.0,69561.0,0.001]
[1771126037637,0.07187699,69564.0,69556.0,0.11473268]
[1771126038060,0.07187699,69564.0,69560.0,0.002]
[1771126038280,0.07187699,69564.0,69556.0,0.11473268]
[1771126038661,0.07187699,69564.0,69561.0,0.002]
[1771126038862,0.07187699,69564.0,69556.0,0.11473268]
[1771126039394,0.07187699,69564.0,69560.0,0.002]
[1771126040501,0.07187699,69564.0,69556.0,0.11473268]
[1771126040663,0.07187699,69564.0,69561.0,0.002]
[1771126040861,0.07187733,69563.0,69556.0,0.11473268]
[1771126041375,0.07187733,69563.0,69560.0,0.002]
[1771126041697,0.07187733,69563.0,69556.0,0.11473268]
[1771126041843,0.07187733,69563.0,69561.0,0.002]
[1771126042043,0.07187733,69563.0,69556.0,0.11473268]
[1771126042499,0.07187733,69563.0,69560.0,0.003]
[1771126043398,4e-05,69562.0,69560.0,0.003]
[1771126043582,4e-05,69562.0,69558.0,0.0002]
[1771126044004,4e-05,69562.0,69561.0,0.002]
[1771126044203,4e-05,69562.0,69558.0,0.0002]
[1771126044616,4e-05,69562.0,69560.0,0.003]
[1771126044812,4e-05,69562.0,69558.0,0.0002]
[1771126045560,4e-05,69562.0,69561.0,0.003]
[1771126045737,4e-05,69562.0,69561.0,0.0013778]
[1771126046639,0.07187989,69561.0,69558.0,0.0002]
[1771126046968,0.07188142,69559.0,69556.0,4e-05]
[1771126047085,0.0718831,69558.0,69556.0,4e-05]
[1771126047735,0.07188183,69559.0,69556.0,4e-05]
[1771126048040,0.07188349,69557.0,69556.0,4e-05]
[1771126048190,0.07188269,69558.0,69556.0,4e-05]
[1771126048639,0.07188269,69558.0,69556.0,0.00204]
[1771126048800,0.07188269,69558.0,69556.0,4e-05]
[1771126049001,0.07188224,69559.0,69556.0,4e-05]
[1771126049205,0.07188319,69558.0,69556.0,4e-05]
[1771126049684,0.07188319,69558.0,69556.0,0.00204]
[1771126050801,0.07188319,69558.0,69556.0,4e-05]
[1771126051408,0.07188319,69558.0,69556.0,0.00024]
[1771126051549,0.07188319,69558.0,69556.0,0.00124]
[1771126051754,0.07188319,69558.0,69556.0,0.0012]
[1771126052663,0.07188349,69557.0,69556.0,0.0012]
[1771126052957,0.07188319,69558.0,69556.0,0.0012]
[1771126053722,0.07188319,69558.0,69556.0,0.0002]
[1771126054227,0.07188319,69558.0,69556.0,0.0012]
[1771126054435,0.07188349,69557.0,69556.0,1e-08]
[1771126055826,0.07388349,69557.0,69556.0,1e-08]
[1771126056861,0.07188349,69557.0,69556.0,1e-08]
[1771126057233,0.07388349,69557.0,69556.0,1e-08]
[1771126057984,0.07188349,69557.0,69556.0,1e-08]
[1771126058496,0.07488349,69557.0,69556.0,1e-08]
[1771126058697,0.07188349,69557.0,69556.0,1e-08]
[1771126059042,0.07488349,69557.0,69556.0,1e-08]
[1771126060221,0.07188349,69557.0,69556.0,1e-08]
[1771126060637,0.07488349,69557.0,69556.0,1e-08]
[1771126060757,0.07188349,69557.0,69556.0,1e-08]
[1771126060958,0.07488349,69557.0,69556.0,1e-08]
[1771126061777,0.07188349,69557.0,69556.0,1e-08]
[1771126062208,0.07388349,69557.0,69556.0,1e-08]
[1771126063436,0.07188349,69557.0,69556.0,1e-08]
[1771126063641,0.07388349,69557.0,69556.0,1e-08]
[1771126066467,0.07173195,69557.0,69556.0,1e-08]
[1771126066670,0.07413195,69557.0,69556.0,1e-08]
[1771126067034,0.07213195,69557.0,69556.0,1e-08]
[1771126067287,0.07413195,69557.0,69556.0,1e-08]
[1771126070434,0.07188452,69556.0,69555.0,1e-08]
[1771126073041,0.07388452,69556.0,69555.0,1e-08]
[1771126073560,0.07188452,69556.0,69555.0,1e-08]
[1771126073757,0.07388452,69556.0,69555.0,1e-08]
[1771126073937,0.07188452,69556.0,69555.0,1e-08]
[1771126074332,0.07388452,69556.0,69555.0,1e-08]
[1771126075356,0.07189072,69550.0,69549.0,1e-08]
[1771126075541,0.07189072,69550.0,69546.0,1e-08]
[1771126075542,0.07189382,69547.0,69546.0,1e-08]
[1771126076954,0.07389382,69547.0,69546.0,1e-08]
[1771126077337,0.07189382,69547.0,69546.0,1e-08]
[1771126077545,0.07389382,69547.0,69546.0,1e-08]
[1771126078865,0.07189382,69547.0,69546.0,1e-08]
[1771126079292,0.07189099,69550.0,69546.0,1e-08]
[1771126079495,0.07189069,69551.0,69547.0,0.04264187]
[1771126079932,0.07189069,69551.0,69547.0,0.03575476]
[1771126080511,0.07188966,69552.0,69547.0,0.03575476]
[1771126080677,0.41628808,69553.0,69547.0,0.03575476]
[1771126080877,0.07188877,69552.0,69547.0,0.02703877]
[1771126081163,0.07188877,69552.0,69548.0,0.03928165]
[1771126081508,0.07188986,69551.0,69548.0,0.03928165]
[1771126081709,0.07188808,69553.0,69548.0,0.03928165]
[1771126081947,0.3448,69557.0,69548.0,0.03928165]
[1771126082130,0.3448,69557.0,69549.0,0.03928165]
[1771126082131,0.34493053,69557.0,69549.0,0.03928165]
[1771126082552,0.07188543,69556.0,69549.0,0.03928165]
[1771126082727,0.00013053,69557.0,69552.0,0.03928165]
[1771126082927,0.07204126,69560.0,69553.0,0.07188707]
[1771126083148,0.07204126,69560.0,69554.0,0.03928165]
[1771126083353,0.001,69557.0,69554.0,0.03937785]
[1771126083834,0.00016,69560.0,69554.0,0.07198252]
[1771126084061,0.00016,69560.0,69555.0,0.03928165]
[1771126084925,0.00016,69560.0,69554.0,0.07198252]
[1771126085125,0.00016,69560.0,69555.0,0.03928165]
[1771126085331,0.07204041,69560.0,69555.0,0.03928165]
[1771126087431,0.00016,69560.0,69555.0,0.03928165]
[1771126088276,4e-05,69556.0,69555.0,0.03924165]
[1771126088801,4e-05,69556.0,69555.0,0.04024165]
[1771126089186,4e-05,69556.0,69555.0,0.03924165]
[1771126089501,4e-05,69556.0,69555.0,0.04124165]
[1771126089712,4e-05,69556.0,69555.0,0.03924165]
[1771126090021,4e-05,69556.0,69555.0,0.04124165]
[1771126091218,4e-05,69556.0,69555.0,0.03924165]
[1771126091623,4e-05,69556.0,69555.0,0.04124165]
[1771126091785,4e-05,69556.0,69555.0,0.03924165]
[1771126092220,4e-05,69556.0,69555.0,0.04124165]
[1771126092423,4e-05,69556.0,69555.0,0.03924165]
[1771126092743,4e-05,69556.0,69555.0,0.02539751]
[1771126092913,4e-05,69556.0,69555.0,0.02359751]
[1771126093124,4e-05,69556.0,69555.0,0.09548306]
[1771126093319,4e-05,69556.0,69555.0,0.09748306]
[1771126093522,0.00024,69562.0,69559.0,0.07188136]
[1771126093719,0.0004,69565.0,69560.0,0.02322837]
[1771126094087,0.0004,69565.0,69560.0,0.02318837]
[1771126094289,0.0004,69565.0,69560.0,0.02314837]
[1771126094802,0.07227566,69565.0,69560.0,0.02314837]
[1771126095229,0.0004,69565.0,69560.0,0.02314837]
[1771126096023,0.0004,69565.0,69560.0,0.09502789]
[1771126096231,0.0004,69565.0,69561.0,0.02322837]
[1771126096998,0.0004,69565.0,69561.0,0.07187903]
[1771126097213,0.0004,69565.0,69562.0,0.02322837]
[1771126097928,0.0014,69565.0,69562.0,0.02322837]
[1771126098133,0.0004,69565.0,69562.0,0.02322837]
[1771126098552,0.0014,69565.0,69562.0,0.02322837]
[1771126098749,0.0004,69565.0,69562.0,0.02322837]
[1771126099014,0.0014,69565.0,69562.0,0.02322837]
[1771126099461,0.0004,69565.0,69562.0,0.02322837]
[1771126099631,0.0014,69565.0,69562.0,0.02322837]
[1771126100310,0.0014,69565.0,69563.0,0.02322837]
[1771126100988,0.0004,69565.0,69563.0,0.02322837]
[1771126101133,0.0014,69565.0,69563.0,0.02322837]
[1771126101331,0.0004,69565.0,69563.0,0.02322837]
[1771126101732,0.0014,69565.0,69563.0,0.02322837]
[1771126102557,0.0004,69565.0,69563.0,0.02322837]
[1771126103086,0.07227529,69565.0,69563.0,0.02322837]
[1771126103296,0.07187634,69564.0,69559.0,0.02322837]
[1771126104410,0.07187823,69563.0,69559.0,0.02322837]
[1771126105008,0.002,69564.0,69559.0,0.02322837]
[1771126105351,0.0004,69565.0,69560.0,0.07187975]
[1771126105561,0.0004,69565.0,69561.0,0.02322837]
[1771126106294,0.0024,69564.0,69561.0,0.02322837]
[1771126107538,0.0004,69564.0,69561.0,0.02322837]
[1771126109792,0.0004,69564.0,69562.0,0.02322837]
[1771126111976,4e-05,69568.0,69562.0,0.02322837]
[1771126112445,0.0004,69564.0,69563.0,0.09510485]
[1771126114425,0.0004,69564.0,69563.0,0.02322837]
[1771126114670,0.0004,69564.0,69563.0,0.02422837]
[1771126115446,0.0004,69564.0,69563.0,0.02322837]
[1771126117356,0.0004,69564.0,69563.0,0.02422837]
[1771126118286,0.00044,69564.0,69563.0,0.02418837]
[1771126119762,0.00044,69564.0,69560.0,0.0002]
[1771126120149,0.07187826,69563.0,69560.0,0.0002]
[1771126120731,0.00044,69564.0,69560.0,0.0002]
[1771126120932,0.00044,69564.0,69560.0,0.02417578]
[1771126121137,0.00044,69564.0,69560.0,0.09605553]
[1771126121316,0.00044,69564.0,69561.0,0.02397578]
[1771126122713,0.00044,69564.0,69560.0,0.07208035]
[1771126123527,0.00244,69564.0,69560.0,0.07208035]
[1771126123728,0.00044,69564.0,69560.0,0.07208035]
[1771126124131,0.00244,69564.0,69560.0,0.07208035]
[1771126126528,0.00244,69564.0,69560.0,0.0002]
[1771126127294,0.00044,69564.0,69560.0,0.0002]
[1771126127750,0.00244,69564.0,69560.0,0.0002]
[1771126129512,0.00044,69564.0,69560.0,0.0002]
[1771126129915,0.00244,69564.0,69556.0,4e-05]
[1771126130176,0.07188163,69559.0,69556.0,4e-05]
[1771126130368,0.07188068,69560.0,69556.0,4e-05]
[1771126131561,0.07588068,69560.0,69556.0,4e-05]
[1771126133008,0.07188068,69560.0,69556.0,0.00024]
[1771126133210,4e-05,69558.0,69556.0,0.00024]
[1771126134553,4e-05,69558.0,69556.0,0.00124]
[1771126137148,4e-05,69558.0,69556.0,0.00024]
[1771126137710,4e-05,69558.0,69556.0,0.00124]
[1771126137866,4e-05,69558.0,69556.0,0.00024]
[1771126141840,4e-05,69558.0,69556.0,0.0002]
[1771126145649,4e-05,69558.0,69555.0,0.0002]
[1771126146048,0.07188452,69556.0,69555.0,1e-08]
[1771126148581,0.07288452,69556.0,69555.0,1e-08]
[1771126149761,0.0234949,69554.0,69550.0,1e-08]
[1771126149961,0.0235384,69554.0,69550.0,1e-08]
[1771126150269,0.07188887,69552.0,69550.0,1e-08]
[1771126152721,0.07288887,69552.0,69550.0,1e-08]
[1771126154963,0.07288887,69552.0,69550.0,0.00020001]
[1771126155888,0.001,69552.0,69550.0,0.00020001]
[1771126156113,0.07188795,69553.0,69550.0,0.00020001]
[1771126156320,0.0718887,69552.0,69550.0,0.00020001]
[1771126156475,0.0728887,69552.0,69550.0,0.00020001]
[1771126157182,0.0718887,69552.0,69550.0,0.00020001]
[1771126157379,0.07188804,69553.0,69550.0,0.00020001]
[1771126157604,0.001,69552.0,69550.0,0.00020001]
[1771126158539,0.07288871,69552.0,69550.0,0.00020001]
[1771126158847,0.07188871,69552.0,69550.0,0.00020001]
[1771126159376,0.07188969,69551.0,69550.0,0.00020001]
[1771126160027,0.07188969,69551.0,69548.0,0.0002]
[1771126160353,0.07188969,69551.0,69546.0,1e-08]
[1771126162053,0.07188969,69551.0,69543.0,0.07209752]
[1771126162054,0.07188969,69551.0,69543.0,0.0161197]
[1771126162259,0.07189074,69550.0,69543.0,0.07189765]
[1771126162620,0.07189074,69550.0,69547.0,0.0002]
[1771126162858,0.07188969,69551.0,69547.0,0.0002]
[1771126163287,4e-05,69548.0,69547.0,0.00016]
[1771126163526,4e-05,69548.0,69542.0,0.0002]
[1771126163797,0.07191347,69528.0,69515.0,0.02496177]
[1771126163990,0.02835555,69531.0,69516.0,0.02496177]
[1771126164163,0.07192071,69521.0,69516.0,0.02496177]
[1771126164463,0.07191607,69526.0,69517.0,0.0719247]
[1771126164608,0.07191766,69524.0,69516.0,0.02496177]
[1771126164810,0.02322051,69531.0,69516.0,0.02496177]
[1771126165059,0.07191641,69526.0,69513.0,0.26128843]
[1771126165229,0.00012,69530.0,69515.0,0.02496177]
[1771126165445,0.02322051,69527.0,69511.0,0.3444]
[1771126165794,0.07191976,69522.0,69512.0,0.07193002]
[1771126166201,0.07192149,69521.0,69513.0,0.001]
[1771126166323,0.07192149,69521.0,69513.0,0.07292863]
[1771126166526,0.07192149,69521.0,69513.0,0.07192863]
[1771126166773,0.07192149,69521.0,69512.0,0.07193002]
[1771126166944,0.07192293,69519.0,69511.0,0.3444]
[1771126167350,0.07192174,69520.0,69511.0,0.41633076]
[1771126167546,0.07192491,69517.0,69511.0,0.3444]
[1771126167783,0.07192521,69517.0,69511.0,0.3444]
[1771126168292,0.28769197,69519.0,69511.0,0.3444]
[1771126168444,0.14385094,69520.0,69511.0,0.3444]
[1771126168849,0.07192471,69518.0,69511.0,0.3444]
[1771126169824,0.0719249,69517.0,69511.0,0.3444]
[1771126170099,0.0719249,69517.0,69511.0,0.3446]
[1771126170477,0.02322051,69522.0,69511.0,0.337092]
[1771126170678,0.07193002,69512.0,69511.0,0.337092]
[1771126171311,0.07193002,69512.0,69511.0,0.26516334]
[1771126171843,0.07193002,69512.0,69511.0,0.26716334]
[1771126172214,0.07193002,69512.0,69511.0,0.26516334]
[1771126172413,0.07193002,69512.0,69511.0,0.26716334]
[1771126172610,0.0719289,69514.0,69511.0,0.26516334]
[1771126172843,0.07192919,69513.0,69511.0,0.26516334]
[1771126173049,0.07193002,69512.0,69511.0,0.0032]
[1771126173278,0.07193002,69512.0,69511.0,0.0002]
[1771126173596,0.07193002,69512.0,69511.0,0.0032]
[1771126173805,0.07192923,69513.0,69511.0,0.0032]
[1771126174005,0.28767912,69522.0,69511.0,0.0032]
[1771126174201,0.07192651,69516.0,69511.0,0.0032]
[1771126174407,0.02322051,69521.0,69511.0,0.0032]
[1771126174608,0.07191765,69524.0,69516.0,0.07192513]
[1771126174814,0.0719173,69525.0,69517.0,0.07192395]
[1771126175021,0.0719173,69525.0,69516.0,0.07192513]
[1771126175022,0.07191779,69524.0,69516.0,0.07192513]
[1771126175695,0.07191868,69523.0,69516.0,0.002]
[1771126176528,0.07191868,69523.0,69515.0,0.07192667]
[1771126177006,0.07191868,69523.0,69516.0,0.002]
[1771126177337,0.07191868,69523.0,69516.0,0.0022]
[1771126178103,0.07191868,69523.0,69516.0,0.0002]
[1771126178330,4e-05,69518.0,69516.0,0.0002]
[1771126179861,4e-05,69518.0,69516.0,0.0012]
[1771126181118,0.07192683,69516.0,69511.0,0.02480155]
[1771126182674,0.07193002,69512.0,69511.0,0.0012]
[1771126183031,0.06691716,69512.0,69511.0,1e-08]
[1771126184194,0.06691716,69512.0,69511.0,0.00100001]
[1771126184521,0.06691716,69512.0,69511.0,1e-08]
[1771126184744,0.06891716,69512.0,69511.0,1e-08]
[1771126185127,0.06691716,69512.0,69511.0,1e-08]
[1771126185292,0.06891716,69512.0,69511.0,1e-08]
[1771126185527,0.002,69512.0,69511.0,1e-08]
[1771126185739,0.07393002,69512.0,69511.0,1e-08]
[1771126186301,0.07193002,69512.0,69511.0,1e-08]
[1771126187518,0.07393002,69512.0,69511.0,1e-08]
[1771126187675,0.07193002,69512.0,69511.0,1e-08]
[1771126187889,0.07293002,69512.0,69511.0,1e-08]
[1771126188363,0.07193002,69512.0,69511.0,1e-08]
[1771126188510,0.07293002,69512.0,69511.0,1e-08]
[1771126190355,0.07193002,69512.0,69511.0,1e-08]
[1771126190780,0.07293002,69512.0,69511.0,1e-08]
[1771126190958,0.07193002,69512.0,69511.0,1e-08]
[1771126191358,0.07293002,69512.0,69511.0,1e-08]
[1771126192322,0.07193106,69511.0,69504.0,0.07193748]
[1771126192523,0.07193221,69510.0,69504.0,0.07193748]
[1771126193076,0.07293002,69512.0,69502.0,0.0002]
[1771126193077,0.001,69512.0,69502.0,0.0002]
[1771126193277,0.07193907,69504.0,69502.0,0.0002]
[1771126193471,0.07193907,69505.0,69502.0,0.0002]
[1771126193721,0.07193907,69505.0,69502.0,0.0006356]
[1771126194325,4e-05,69510.0,69490.0,0.43512915]
[1771126194496,4e-05,69510.0,69495.0,0.00024703]
[1771126194497,0.07194414,69499.0,69495.0,0.00024703]
[1771126195119,0.07194069,69502.0,69495.0,0.00024703]
[1771126195317,0.07193502,69508.0,69495.0,0.28803644]
[1771126195659,0.07193645,69506.0,69499.0,0.07194254]
[1771126196046,0.07193738,69505.0,69499.0,0.07194254]
[1771126196254,0.07193738,69505.0,69498.0,0.07194432]
[1771126196650,0.07193842,69504.0,69498.0,0.07194432]
[1771126196810,0.07193951,69503.0,69497.0,0.07194553]
[1771126197443,0.28773395,69509.0,69495.0,0.00024703]
[1771126197649,0.07194599,69497.0,69490.0,0.50708173]
[1771126197853,0.43512915,69500.0,69479.0,0.10585455]
[1771126198055,0.43512915,69500.0,69470.0,0.43512915]
[1771126198056,0.07197243,69472.0,69470.0,0.00012]
[1771126198256,0.07197146,69472.0,69470.0,0.00020774]
[1771126198455,0.07197001,69474.0,69467.0,0.09212]
[1771126198665,0.07197259,69471.0,69467.0,0.09225068]
[1771126198829,0.07197166,69472.0,69467.0,0.00013068]
[1771126199031,0.09636252,69472.0,69467.0,0.00013068]
[1771126199234,0.09636241,69472.0,69467.0,0.00013068]
[1771126199613,0.07197155,69472.0,69467.0,0.00013068]
[1771126200247,0.02439086,69476.0,69467.0,0.00013068]
[1771126200414,0.07197221,69472.0,69467.0,0.00013068]
[1771126200688,0.07197481,69469.0,69467.0,0.00013068]
[1771126200884,0.07197277,69471.0,69467.0,0.00013068]
[1771126201107,0.07197166,69472.0,69467.0,0.00013068]
[1771126201319,0.02439086,69474.0,69470.0,0.07197329]
[1771126201553,0.00012,69480.0,69467.0,0.03108927]
[1771126201741,0.00012,69480.0,69470.0,0.43500915]
[1771126202044,0.0719661,69478.0,69470.0,0.50698255]
[1771126202793,0.0719661,69478.0,69471.0,0.07197243]
[1771126203601,0.0729661,69478.0,69471.0,0.07197243]
[1771126204086,0.0719661,69478.0,69471.0,0.07197243]
[1771126204219,0.0729661,69478.0,69471.0,0.07197243]
[1771126204416,0.001,69478.0,69471.0,0.07197243]
[1771126204775,0.09634839,69486.0,69470.0,0.07197247]
[1771126204974,0.09634853,69486.0,69478.0,0.07196434]
[1771126205183,0.09224,69490.0,69478.0,0.07196434]
[1771126205184,0.04858853,69490.0,69480.0,0.00012]
[1771126205405,0.07195589,69488.0,69483.0,5e-05]
[1771126205596,0.31220668,69489.0,69483.0,5e-05]
[1771126205832,0.02439086,69489.0,69470.0,0.00012]
[1771126206035,0.07196654,69477.0,69470.0,0.00032]
[1771126206603,0.07196657,69477.0,69470.0,0.00032]
[1771126206807,0.28786716,69477.0,69465.0,0.0719784]
[1771126207074,0.02439086,69474.0,69463.0,0.000479]
[1771126207275,0.07197236,69472.0,69464.0,0.07197957]
[1771126207414,0.0245213,69474.0,69463.0,0.000479]
[1771126207621,0.02439086,69473.0,69463.0,0.000479]
[1771126207818,0.02880166,69474.0,69463.0,0.000479]
[1771126207819,0.0245213,69474.0,69463.0,0.000479]
[1771126208018,0.09649094,69474.0,69466.0,0.07197689]
[1771126208568,0.07197084,69473.0,69466.0,0.07197689]
[1771126208764,0.09649072,69474.0,69467.0,0.07197662]
[1771126209061,0.0245213,69474.0,69468.0,0.07197545]
[1771126209232,0.07210016,69474.0,69466.0,0.07197689]
[1771126209692,0.00013044,69474.0,69466.0,0.07197689]
[1771126209898,0.00013044,69474.0,69463.0,0.000479]
[1771126210119,0.00012,69480.0,69466.0,0.03095859]
[1771126210324,0.00012,69480.0,69475.0,0.07196746]
[1771126210554,0.00012,69480.0,69474.0,0.07196746]
[1771126210760,0.07196498,69479.0,69471.0,0.07197159]
[1771126211529,0.07208331,69480.0,69472.0,0.07197043]
[1771126212342,0.07196429,69479.0,69472.0,0.07197043]
[1771126217402,0.07196545,69478.0,69471.0,0.07197227]
[1771126219513,0.07208331,69480.0,69468.0,0.02426091]
[1771126219716,0.07208331,69480.0,69469.0,0.28789819]
[1771126219963,0.07208331,69480.0,69472.0,0.07197052]
[1771126220161,0.07196442,69479.0,69472.0,0.07197052]
[1771126220366,0.07196527,69478.0,69471.0,0.07197052]
[1771126221176,0.00012,69480.0,69477.0,0.07196574]
[1771126221379,0.00012,69480.0,69478.0,0.07196489]
[1771126222619,0.00012,69480.0,69477.0,0.07196583]
[1771126222920,0.00012,69480.0,69478.0,0.002]
[1771126223350,0.00016,69480.0,69478.0,0.0018]
[1771126223524,0.00016,69480.0,69478.0,0.07376479]
[1771126223735,0.00016,69480.0,69479.0,0.07196419]
[1771126223966,0.00016,69480.0,69477.0,0.002]
[1771126224185,0.07212362,69480.0,69477.0,0.002]
[1771126224384,0.00016,69480.0,69477.0,0.002]
[1771126225364,0.00016,69480.0,69475.0,0.07196833]